bitfinex/quotes_BTCUSD_20240901
["timestamp","ask_amount","ask_price","bid_price","bid_amount"]
[1725233339364,0.000947,57603.0,57602.0,1.257235]
[1725233339794,0.000947,57603.0,57602.0,1.271235]
[1725233340228,0.000947,57603.0,57602.0,1.229235]
[1725233340462,0.000947,57603.0,57602.0,1.248235]
[1725233340899,0.000947,57603.0,57602.0,1.215235]
[1725233341110,0.000947,57603.0,57602.0,1.229235]
[1725233341330,0.000947,57603.0,57602.0,0.896025]
[1725233341552,0.222847,57603.0,57602.0,0.548815]
[1725233342008,0.222847,57603.0,57602.0,0.028]
[1725233342009,0.391847,57603.0,57602.0,0.028]
[1725233342439,0.565449,57603.0,57602.0,0.014]
[1725233342652,0.391847,57603.0,57602.0,0.014]
[1725233342877,0.391847,57603.0,57602.0,0.028]
[1725233342878,1.02492821,57603.0,57602.0,0.028]
[1725233343106,1.02492821,57603.0,57598.0,0.0008987]
[1725233343107,0.173614,57599.0,57598.0,0.0008987]
[1725233343336,1.12457914,57599.0,57598.0,0.0008987]
[1725233343556,1.58935975,57599.0,57598.0,0.0008987]
[1725233344210,1.46680714,57599.0,57598.0,0.0008987]
[1725233344453,1.46680714,57599.0,57598.0,0.0048987]
[1725233345090,1.46680714,57599.0,57598.0,0.0158987]
[1725233345728,1.81403514,57599.0,57598.0,0.0158987]
[1725233345956,1.56680714,57599.0,57598.0,0.0158987]
[1725233346159,2.08151055,57599.0,57598.0,0.0158987]
[1725233346378,0.2148,57585.0,57573.0,0.347381]
[1725233346590,0.2148,57585.0,57565.0,0.67380786]
[1725233346591,0.37559614,57584.0,57583.0,0.50540786]
[1725233346794,0.37559614,57584.0,57579.0,0.173674]
[1725233347031,0.20193714,57584.0,57580.0,0.173671]
[1725233347243,0.20193714,57584.0,57576.0,0.173683]
[1725233347244,0.173668,57582.0,57576.0,0.173683]
[1725233347449,0.173668,57582.0,57574.0,0.347375]
[1725233347450,0.20193714,57584.0,57575.0,0.34737]
[1725233347878,0.173667,57582.0,57575.0,0.34737]
[1725233348114,0.173667,57582.0,57577.0,0.183679]
[1725233348341,0.173667,57582.0,57580.0,0.014]
[1725233348572,0.20293714,57584.0,57580.0,0.014]
[1725233348573,0.37659714,57584.0,57580.0,0.014]
[1725233348782,0.20393714,57584.0,57580.0,0.014]
[1725233349002,0.173668,57581.0,57580.0,0.014]
[1725233349208,0.086,57575.0,57570.0,0.347402]
[1725233349415,0.086,57575.0,57574.0,0.173689]
[1725233349630,0.086,57575.0,57574.0,0.521068]
[1725233351300,0.087,57575.0,57574.0,0.876447]
[1725233351740,0.088,57575.0,57574.0,0.529068]
[1725233352177,0.088,57575.0,57574.0,0.181689]
[1725233352407,0.088,57575.0,57574.0,0.529068]
[1725233352633,0.088,57575.0,57574.0,0.876447]
[1725233353079,0.087,57575.0,57574.0,0.876447]
[1725233353361,0.086,57575.0,57574.0,0.868447]
[1725233353593,0.087,57575.0,57574.0,0.868447]
[1725233354096,0.086,57575.0,57574.0,0.868447]
[1725233354346,0.087,57575.0,57574.0,0.868447]
[1725233355048,0.088,57575.0,57574.0,0.868447]
[1725233355526,0.088,57575.0,57558.0,0.4779987]
[1725233355527,0.4899,57575.0,57558.0,0.4779987]
[1725233355903,0.20193714,57563.0,57558.0,0.0008987]
[1725233356086,0.0968,57575.0,57561.0,0.173728]
[1725233356087,0.1743,57562.0,57561.0,0.173728]
[1725233356721,0.1743,57562.0,57561.0,0.521185]
[1725233357336,0.1743,57562.0,57558.0,0.0008987]
[1725233358578,0.348026,57562.0,57558.0,0.0008987]
[1725233358802,0.4047086,57562.0,57558.0,0.0008987]
[1725233359023,0.2319826,57562.0,57558.0,0.0008987]
[1725233359243,0.1743,57562.0,57558.0,0.0008987]
[1725233359482,0.37567114,57559.0,57558.0,0.0008987]
[1725233360147,0.1743,57562.0,57558.0,0.0008987]
[1725233360360,0.173732,57560.0,57558.0,0.0008987]
[1725233360582,0.173734,57559.0,57558.0,0.0008987]
[1725233361272,1.19519655,57559.0,57558.0,0.0008987]
[1725233361496,1.07060914,57559.0,57558.0,0.0008987]
[1725233361719,0.72314014,57559.0,57558.0,0.0008987]
[1725233362380,0.37567114,57559.0,57558.0,0.0008987]
[1725233363045,1.30040914,57559.0,57558.0,0.0008987]
[1725233363257,1.39852959,57559.0,57558.0,0.0008987]
[1725233364188,1.30040914,57559.0,57558.0,0.0008987]
[1725233365697,0.001,57562.0,57561.0,0.347457]
[1725233365928,0.001,57562.0,57561.0,0.868642]
[1725233366353,0.001,57562.0,57561.0,1.089842]
[1725233366803,0.001,57562.0,57561.0,0.521185]
[1725233368687,0.001,57562.0,57561.0,0.868642]
[1725233370551,0.001,57562.0,57558.0,0.0008987]
[1725233370552,0.173731,57560.0,57558.0,0.0008987]
[1725233370768,0.0174731,57560.0,57558.0,0.0008987]
[1725233371006,0.1811,57561.0,57558.0,0.0008987]
[1725233371007,0.173734,57559.0,57558.0,0.0008987]
[1725233371699,0.37567114,57559.0,57558.0,0.0008987]
[1725233371927,0.93804014,57559.0,57558.0,0.0008987]
[1725233373019,0.59057114,57559.0,57558.0,0.0008987]
[1725233373222,0.93804014,57559.0,57558.0,0.0008987]
[1725233373658,0.59057114,57559.0,57558.0,0.0008987]
[1725233373868,0.2927,57561.0,57558.0,0.0008987]
[1725233374298,0.173734,57559.0,57558.0,0.0008987]
[1725233374932,0.2927,57561.0,57558.0,0.0008987]
[1725233375142,0.173734,57559.0,57558.0,0.0008987]
[1725233375353,0.2927,57561.0,57558.0,0.0008987]
[1725233375559,0.521203,57559.0,57558.0,0.0008987]
[1725233375992,0.173734,57559.0,57558.0,0.0008987]
[1725233376398,0.521203,57559.0,57558.0,0.0008987]
[1725233378032,1.07060914,57559.0,57558.0,0.0008987]
[1725233378671,1.62997814,57559.0,57558.0,0.0008987]
[1725233378908,1.97882978,57559.0,57558.0,0.0008987]
[1725233379317,1.97682978,57559.0,57558.0,0.0008987]
[1725233379935,1.46080914,57559.0,57558.0,0.0008987]
[1725233380760,1.45973618,57559.0,57558.0,0.0008987]
[1725233382534,0.35096104,57559.0,57558.0,0.0008987]
[1725233382740,0.69843004,57559.0,57558.0,0.0008987]
[1725233383164,1.04589904,57559.0,57558.0,0.0008987]
[1725233383598,0.69843004,57559.0,57558.0,0.0008987]
[1725233384238,0.84640226,57559.0,57558.0,0.0008987]
[1725233384682,1.19387126,57559.0,57558.0,0.0008987]
[1725233386230,1.35574403,57559.0,57558.0,0.0008987]
[1725233386437,1.70321303,57559.0,57558.0,0.0008987]
[1725233386650,1.35574403,57559.0,57558.0,0.0008987]
[1725233386857,1.90941303,57559.0,57558.0,0.0008987]
[1725233387063,1.90441303,57559.0,57558.0,0.0008987]
[1725233387864,1.55694403,57559.0,57558.0,0.0008987]
[1725233388075,1.76200735,57559.0,57558.0,0.0008987]
[1725233388284,1.79824164,57559.0,57558.0,0.0008987]
[1725233388698,1.80324164,57559.0,57558.0,0.0008987]
[1725233388903,2.36918964,57559.0,57558.0,0.0008987]
[1725233389135,2.08199864,57559.0,57558.0,0.0008987]
[1725233389369,2.52413928,57559.0,57558.0,0.0008987]
[1725233389826,2.52413928,57559.0,57540.0,0.008987]
[1725233389827,1.038445,57541.0,57540.0,0.008987]
[1725233390075,1.40151777,57541.0,57540.0,0.008987]
[1725233390271,1.74909577,57541.0,57540.0,0.008987]
[1725233390479,1.79822931,57541.0,57540.0,0.008987]
[1725233391336,1.40151777,57541.0,57540.0,0.008987]
[1725233391552,1.40351777,57541.0,57540.0,0.008987]
[1725233391767,1.40151777,57541.0,57540.0,0.008987]
[1725233391979,1.44211523,57541.0,57540.0,0.008987]
[1725233392190,1.78969323,57541.0,57540.0,0.008987]
[1725233393016,1.95824487,57541.0,57540.0,0.008987]
[1725233395289,1.43687787,57541.0,57540.0,0.008987]
[1725233395502,1.44211523,57541.0,57540.0,0.008987]
[1725233396106,1.24091523,57541.0,57540.0,0.008987]
[1725233400239,0.173789,57541.0,57540.0,0.008987]
[1725233400458,0.447528,57550.0,57540.0,0.008987]
[1725233400459,0.20247023,57556.0,57544.0,0.2066]
[1725233400682,0.1766,57558.0,57549.0,0.347529]
[1725233400890,0.17374,57557.0,57549.0,0.347527]
[1725233401112,0.000817,57559.0,57545.0,0.1695]
[1725233401333,0.000817,57559.0,57544.0,0.2066]
[1725233401334,0.173777,57545.0,57544.0,0.2066]
[1725233401621,0.20247023,57546.0,57540.0,0.173587]
[1725233401622,0.521367,57541.0,57540.0,0.008987]
[1725233401840,1.07141523,57541.0,57540.0,0.008987]
[1725233402055,0.72383723,57541.0,57540.0,0.008987]
[1725233403583,1.07141523,57541.0,57540.0,0.008987]
[1725233403800,0.72383723,57541.0,57540.0,0.008987]
[1725233404230,1.07141523,57541.0,57540.0,0.008987]
[1725233404688,0.72331269,57541.0,57540.0,0.008987]
[1725233404902,0.34753,57549.0,57541.0,0.173787]
[1725233405117,0.173774,57546.0,57542.0,0.173785]
[1725233405350,0.347537,57548.0,57540.0,0.213487]
[1725233405613,0.20247023,57551.0,57540.0,0.213487]
[1725233405614,0.173762,57550.0,57540.0,0.213487]
[1725233405822,0.173768,57548.0,57543.0,0.173782]
[1725233406038,0.173771,57547.0,57541.0,0.173787]
[1725233406458,0.173771,57547.0,57542.0,0.173786]
[1725233406887,0.173774,57546.0,57542.0,0.173786]
[1725233407541,0.173774,57546.0,57541.0,0.1746847]
[1725233407749,0.2259044,57546.0,57541.0,0.1746847]
[1725233408193,0.0521304,57546.0,57541.0,0.0008987]
[1725233408412,0.72382823,57542.0,57541.0,0.0008987]
[1725233408624,1.23950023,57542.0,57541.0,0.0008987]
[1725233408842,0.173786,57542.0,57541.0,0.0008987]
[1725233409057,0.173786,57542.0,57541.0,0.0875387]
[1725233409348,0.173786,57542.0,57541.0,0.2987387]
[1725233410440,0.173774,57546.0,57541.0,0.2987387]
[1725233410661,0.347534,57549.0,57541.0,0.2987387]
[1725233410662,0.347534,57549.0,57543.0,0.173782]
[1725233410874,0.347534,57549.0,57541.0,0.2987387]
[1725233410875,0.173772,57547.0,57541.0,0.4725247]
[1725233411095,0.173774,57546.0,57541.0,0.4725247]
[1725233411318,0.173781,57544.0,57541.0,0.2987387]
[1725233411542,0.173781,57544.0,57541.0,0.0875387]
[1725233411543,0.173786,57542.0,57541.0,0.0875387]
[1725233411769,0.347528,57550.0,57542.0,0.1749]
[1725233411770,0.20247023,57550.0,57542.0,0.1749]
[1725233411992,0.54999523,57550.0,57542.0,0.1749]
[1725233412196,0.173772,57547.0,57542.0,0.348685]
[1725233412464,0.347549,57546.0,57541.0,0.0875387]
[1725233412709,0.20247023,57550.0,57541.0,0.0875387]
[1725233412710,0.521358,57542.0,57541.0,0.0875387]
[1725233412946,0.173786,57542.0,57541.0,0.0875387]
[1725233413438,0.20247023,57545.0,57541.0,0.0875387]
[1725233413702,0.173784,57543.0,57541.0,0.0875387]
[1725233413942,0.173786,57542.0,57541.0,0.0875387]
[1725233414173,0.521358,57542.0,57541.0,0.0875387]
[1725233414426,0.173786,57542.0,57541.0,0.0875387]
[1725233415142,0.521358,57542.0,57541.0,0.0875387]
[1725233416722,0.173786,57542.0,57541.0,0.0875387]
[1725233417747,0.1609,57555.0,57542.0,0.2119]
[1725233417978,0.1609,57555.0,57541.0,0.2599387]
[1725233417979,0.000817,57559.0,57546.0,0.347547]
[1725233418227,0.000817,57559.0,57543.0,0.17587525]
[1725233418228,0.173739,57558.0,57549.0,0.2119]
[1725233418461,0.17374,57557.0,57551.0,0.347515]
[1725233418710,0.17374,57557.0,57552.0,0.173755]
[1725233418711,0.173742,57557.0,57552.0,0.173755]
[1725233418947,0.000817,57559.0,57556.0,0.173743]
[1725233419165,0.000817,57559.0,57551.0,0.347512]
[1725233419409,0.000817,57559.0,57553.0,0.347504]
[1725233419885,0.174552,57559.0,57553.0,0.17375]
[1725233420099,0.173738,57558.0,57552.0,0.34751]
[1725233420313,0.173738,57558.0,57554.0,0.173749]
[1725233420523,0.000817,57559.0,57555.0,0.173745]
[1725233420773,0.000817,57559.0,57552.0,0.34751]
[1725233420774,0.000817,57559.0,57556.0,0.173743]
[1725233421223,0.000817,57559.0,57558.0,0.173737]
[1725233421660,0.000817,57559.0,57555.0,0.1682]
[1725233422088,0.000817,57559.0,57556.0,0.173743]
[1725233422728,0.000817,57559.0,57555.0,0.1682]
[1725233422729,0.000817,57559.0,57558.0,1.082987]
[1725233422952,0.000817,57559.0,57558.0,1.252687]
[1725233423169,0.000817,57559.0,57558.0,0.905212]
[1725233423392,0.000817,57559.0,57558.0,0.557737]
[1725233424257,0.000817,57559.0,57558.0,0.905212]
[1725233426154,0.000817,57559.0,57558.0,0.557737]
[1725233426381,0.000817,57559.0,57558.0,0.2143]
[1725233426587,0.000817,57559.0,57554.0,0.2082]
[1725233426797,0.000817,57559.0,57556.0,0.173741]
[1725233427454,0.000817,57559.0,57549.0,0.522729]
[1725233427455,0.0183715,57559.0,57549.0,0.522729]
[1725233427680,0.0183715,57559.0,57546.0,0.379171]
[1725233427681,0.173758,57551.0,57546.0,0.379171]
[1725233427893,0.347493,57556.0,57547.0,0.173769]
[1725233428116,0.173751,57554.0,57549.0,0.173763]
[1725233428346,0.348289,57559.0,57546.0,0.2054]
[1725233428347,0.34829,57559.0,57546.0,0.2054]
[1725233428558,0.173744,57556.0,57552.0,0.173755]
[1725233428798,0.173739,57558.0,57550.0,0.347522]
[1725233429045,0.174552,57559.0,57550.0,0.347522]
[1725233429303,0.174552,57559.0,57545.0,0.1752]
[1725233429304,0.000817,57559.0,57558.0,0.521212]
[1725233429573,0.000817,57559.0,57558.0,1.249287]
[1725233430237,0.000817,57559.0,57558.0,1.596762]
[1725233430464,0.000817,57559.0,57558.0,1.619762]
[1725233430667,0.000817,57559.0,57558.0,1.621762]
[1725233430905,0.000817,57559.0,57558.0,1.63233299]
[1725233431109,0.000817,57559.0,57558.0,1.63033299]
[1725233432262,0.000817,57559.0,57558.0,1.619762]
[1725233432931,0.000817,57559.0,57558.0,1.63026828]
[1725233433416,0.000817,57559.0,57558.0,1.98474328]
[1725233433657,0.000817,57559.0,57558.0,1.99474328]
[1725233433896,0.000817,57559.0,57558.0,2.09474328]
[1725233434879,0.000817,57559.0,57558.0,2.44221828]
[1725233436302,0.001,57562.0,57561.0,1.570556]
[1725233436538,0.001,57562.0,57561.0,2.29102623]
[1725233437202,0.1116,57570.0,57569.0,1.58034]
[1725233437447,0.000817,57580.0,57579.0,0.521022]
[1725233437448,0.112417,57580.0,57579.0,0.521022]
[1725233437671,0.112417,57580.0,57579.0,1.610718]
[1725233438330,0.112417,57580.0,57579.0,1.612718]
[1725233438544,0.112417,57580.0,57579.0,1.633718]
[1725233439013,0.112417,57580.0,57579.0,1.08767]
[1725233440553,0.112417,57580.0,57579.0,0.521022]
[1725233440775,0.112417,57580.0,57579.0,0.173674]
[1725233440991,0.112417,57580.0,57579.0,0.86837]
[1725233441432,0.112417,57580.0,57579.0,1.215718]
[1725233442288,0.112417,57580.0,57579.0,0.86837]
[1725233442915,0.112417,57580.0,57579.0,1.08957]
[1725233443118,0.112417,57580.0,57579.0,1.436918]
[1725233443324,0.112417,57580.0,57579.0,1.08957]
[1725233443541,0.112417,57580.0,57579.0,0.86837]
[1725233443751,0.112417,57580.0,57579.0,0.521022]
[1725233443962,0.112417,57580.0,57579.0,0.86837]
[1725233445037,0.112417,57580.0,57579.0,1.595918]
[1725233445249,0.112417,57580.0,57579.0,1.620918]
[1725233445463,0.112417,57580.0,57579.0,1.618918]
[1725233445670,0.112417,57580.0,57579.0,1.620918]
[1725233446106,0.112417,57580.0,57579.0,1.618918]
[1725233446587,0.112417,57580.0,57579.0,1.631394]
[1725233447802,0.112417,57580.0,57579.0,1.978742]
[1725233450446,0.112417,57580.0,57579.0,2.34109]
[1725233450654,0.112417,57580.0,57579.0,2.44109]
[1725233451497,0.112417,57580.0,57579.0,2.093742]
[1725233452975,0.112417,57580.0,57579.0,2.44109]
[1725233453411,0.112417,57580.0,57579.0,2.086742]
[1725233455112,0.112417,57580.0,57579.0,2.088742]
[1725233456673,0.112417,57580.0,57579.0,2.093742]
[1725233458375,0.112417,57580.0,57579.0,2.163376]
[1725233458980,0.112417,57580.0,57579.0,2.156376]
[1725233459199,0.112417,57580.0,57579.0,2.161376]
[1725233460055,0.112417,57580.0,57579.0,1.04848]
[1725233462177,0.112417,57580.0,57579.0,0.590656]
[1725233462390,0.276017,57580.0,57576.0,0.173683]
[1725233462606,0.276017,57580.0,57578.0,0.173674]
[1725233463044,0.276017,57580.0,57575.0,0.347371]
[1725233463045,0.276017,57580.0,57579.0,0.173674]
[1725233463511,0.276017,57580.0,57579.0,0.86837]
[1725233463512,0.112417,57580.0,57579.0,0.86837]
[1725233464573,0.112417,57580.0,57579.0,1.610018]
[1725233465228,0.112417,57580.0,57563.0,0.2047]
[1725233465229,0.44841661,57580.0,57563.0,0.2047]
[1725233465457,0.44841661,57580.0,57562.0,0.0008998]
[1725233465458,0.347355,57578.0,57562.0,0.50630766]
[1725233465671,0.347355,57578.0,57565.0,0.069668]
[1725233465672,0.173702,57570.0,57565.0,0.069668]
[1725233465884,0.1631,57570.0,57565.0,0.069668]
[1725233466101,0.1631,57570.0,57569.0,0.173704]
[1725233466762,0.218,57576.0,57563.0,0.16165791]
[1725233466971,0.3811,57576.0,57573.0,0.173691]
[1725233467439,0.3811,57576.0,57571.0,0.173696]
[1725233467440,0.09401659,57576.0,57571.0,0.173696]
[1725233467847,0.26769959,57576.0,57569.0,0.347405]
[1725233468075,0.26769959,57576.0,57571.0,0.173697]
[1725233468711,0.173687,57575.0,57568.0,0.347413]
[1725233468912,0.09401659,57576.0,57572.0,0.173694]
[1725233469126,0.173687,57575.0,57571.0,0.173697]
[1725233469774,0.173687,57575.0,57569.0,0.173703]
[1725233469990,0.173687,57575.0,57568.0,0.347413]
[1725233470206,0.173687,57575.0,57570.0,0.1737]
[1725233470427,0.285287,57575.0,57570.0,0.1737]
[1725233470676,0.285287,57575.0,57568.0,0.347413]
[1725233470677,0.3253,57575.0,57571.0,0.173695]
[1725233470888,0.3253,57575.0,57572.0,0.173695]
[1725233471106,0.3253,57575.0,57568.0,0.347413]
[1725233471331,0.3253,57575.0,57562.0,0.0705708]
[1725233471332,0.1116,57575.0,57574.0,0.173689]
[1725233471761,0.1116,57575.0,57574.0,0.521068]
[1725233471976,0.1116,57575.0,57574.0,0.868447]
[1725233473961,0.1116,57575.0,57574.0,1.215826]
[1725233474180,0.1116,57575.0,57574.0,0.868447]
[1725233474399,0.1116,57575.0,57574.0,0.521068]
[1725233474668,0.1116,57575.0,57574.0,0.868447]
[1725233476284,0.1116,57579.0,57578.0,0.521031]
[1725233476503,0.1116,57579.0,57578.0,0.868385]
[1725233477635,0.1116,57579.0,57578.0,0.173677]
[1725233478639,0.2739,57579.0,57578.0,0.173677]
[1725233478845,0.2739,57579.0,57578.0,0.521031]
[1725233479308,0.2739,57579.0,57578.0,0.868385]
[1725233479512,0.1116,57579.0,57578.0,0.868385]
[1725233480567,0.1116,57579.0,57578.0,1.215739]
[1725233480773,0.1116,57579.0,57578.0,1.896393]
[1725233481025,0.1116,57579.0,57578.0,2.063893]
[1725233481230,0.1116,57579.0,57578.0,2.068893]
[1725233481660,0.1116,57579.0,57578.0,2.07933084]
[1725233482093,0.1116,57579.0,57578.0,2.15735761]
[1725233482330,0.1116,57579.0,57578.0,2.42668484]
[1725233482534,0.1116,57579.0,57578.0,2.50467687]
[1725233482535,0.04213,57579.0,57578.0,2.50467687]
[1725233483422,0.04213,57579.0,57578.0,2.42668484]
[1725233484063,0.04213,57579.0,57578.0,2.62860814]
[1725233485150,0.04213,57579.0,57578.0,2.70660017]
[1725233485361,0.000817,57580.0,57579.0,1.947066]
[1725233485578,0.43156478,57606.0,57605.0,0.520788]
[1725233485786,0.1696,57606.0,57605.0,0.86798]
[1725233485994,0.1696,57606.0,57605.0,0.520788]
[1725233487815,0.1696,57606.0,57605.0,0.86798]
[1725233488025,0.1696,57606.0,57605.0,0.520788]
[1725233489050,0.170418,57606.0,57605.0,0.520788]
[1725233489906,0.170418,57606.0,57605.0,0.86798]
[1725233490233,0.170418,57606.0,57605.0,0.520788]
[1725233491047,0.000818,57606.0,57605.0,0.86798]
[1725233492416,0.000818,57606.0,57600.0,0.347219]
[1725233492417,0.2107,57605.0,57600.0,0.347219]
[1725233492622,0.2107,57605.0,57604.0,0.173599]
[1725233493037,0.2107,57605.0,57604.0,0.520797]
[1725233493248,0.000818,57606.0,57605.0,0.520788]
[1725233493461,0.000818,57606.0,57605.0,0.86798]
[1725233493711,0.000818,57606.0,57605.0,0.173596]
[1725233494126,0.000818,57606.0,57605.0,0.520788]
[1725233494518,0.000818,57606.0,57605.0,0.607428]
[1725233497745,0.000818,57606.0,57605.0,1.511012]
[1725233501412,0.000818,57606.0,57605.0,1.534012]
[1725233501892,0.000818,57606.0,57605.0,1.5349107]
[1725233502103,0.000818,57606.0,57605.0,1.3027107]
[1725233505530,0.000818,57606.0,57605.0,1.3257107]
[1725233505956,0.000818,57606.0,57605.0,1.6910107]
[1725233506157,0.000818,57606.0,57605.0,1.85245443]
[1725233506608,0.000818,57606.0,57605.0,2.20464643]
[1725233506812,0.000818,57606.0,57605.0,2.30464643]
[1725233507432,0.000818,57606.0,57605.0,2.29964643]
[1725233508257,0.000818,57606.0,57605.0,2.65183843]
[1725233508464,0.000818,57606.0,57605.0,2.66383843]
[1725233510798,0.000818,57606.0,57605.0,2.31664643]
[1725233511021,0.000818,57606.0,57605.0,2.31464643]
[1725233511197,0.000818,57606.0,57605.0,2.31664643]
[1725233515000,0.000818,57606.0,57605.0,2.66383843]
[1725233516098,0.000818,57606.0,57605.0,2.66183843]
[1725233516335,0.000818,57606.0,57605.0,2.66383843]
[1725233516928,0.000818,57606.0,57605.0,2.67201843]
[1725233517394,0.000818,57606.0,57605.0,2.67001843]
[1725233517622,0.000818,57606.0,57605.0,2.67201843]
[1725233518854,0.000818,57606.0,57605.0,2.67001843]
[1725233519284,0.000818,57606.0,57605.0,2.67201843]
[1725233519849,0.000818,57606.0,57605.0,2.67001843]
[1725233520680,0.000818,57606.0,57605.0,2.67201843]
[1725233520904,0.000818,57606.0,57605.0,2.67001843]
[1725233521118,0.000818,57606.0,57605.0,2.67201843]
[1725233521339,0.000818,57606.0,57605.0,2.32282643]
[1725233521553,0.000818,57606.0,57605.0,1.3108907]
[1725233521758,0.000818,57606.0,57605.0,1.3158907]
[1725233522367,0.000818,57606.0,57605.0,0.9636987]
[1725233522576,0.166118,57606.0,57605.0,0.9636987]
[1725233523184,0.166118,57606.0,57605.0,1.3108907]
[1725233523961,0.166118,57606.0,57605.0,1.4108907]
[1725233524573,0.000818,57606.0,57605.0,1.4338907]
[1725233526783,0.000818,57606.0,57605.0,1.0636987]
[1725233526990,0.382218,57606.0,57605.0,0.2693147]
[1725233527194,0.382218,57606.0,57605.0,0.9636987]
[1725233527393,0.171418,57606.0,57605.0,0.9636987]
[1725233528596,0.171418,57606.0,57605.0,0.6165067]
[1725233530681,0.171418,57606.0,57605.0,0.2693147]
[1725233530905,1.05724073,57606.0,57605.0,0.0875387]
[1725233531287,0.53646173,57606.0,57605.0,0.0875387]
[1725233531521,0.375018,57606.0,57605.0,0.2611347]
[1725233532167,0.375018,57606.0,57605.0,0.0875387]
[1725233533457,0.375018,57606.0,57605.0,0.2611347]
[1725233534647,0.00818,57607.0,57605.0,0.2611347]
[1725233534648,0.00818,57607.0,57606.0,0.173593]
[1725233534850,0.00818,57607.0,57606.0,0.867965]
[1725233535261,0.00818,57607.0,57606.0,1.215151]
[1725233535720,0.00818,57607.0,57606.0,1.015151]
[1725233535945,0.00818,57607.0,57606.0,1.211744]
[1725233536801,0.00818,57607.0,57605.0,0.0875387]
[1725233537005,0.00818,57607.0,57606.0,0.173593]
[1725233537184,0.00818,57607.0,57605.0,0.0875387]
[1725233537605,0.3429,57606.0,57605.0,0.0875387]
[1725233537827,0.3429,57606.0,57605.0,0.2611347]
[1725233538447,0.3429,57606.0,57605.0,0.0875387]
[1725233539353,0.3429,57606.0,57605.0,0.2611347]
[1725233539966,0.3429,57606.0,57605.0,0.0875387]
[1725233540793,0.3429,57606.0,57605.0,0.2611347]
[1725233541000,0.3429,57606.0,57605.0,0.6083267]
[1725233541001,0.1586,57606.0,57605.0,0.6083267]
[1725233541209,0.00818,57607.0,57606.0,0.520779]
[1725233541414,0.00818,57607.0,57606.0,0.867965]
[1725233541828,0.00818,57607.0,57606.0,1.238151]
[1725233542031,0.00818,57607.0,57606.0,0.890965]
[1725233542850,0.00818,57607.0,57606.0,1.215151]
[1725233543053,0.00818,57607.0,57606.0,0.867965]
[1725233544329,0.19248,57607.0,57605.0,0.0875387]
[1725233544637,0.1675,57606.0,57605.0,0.0875387]
[1725233544840,0.341093,57606.0,57605.0,0.0875387]
[1725233545118,0.74222022,57606.0,57605.0,0.0875387]
[1725233545485,0.341093,57606.0,57605.0,0.0875387]
[1725233546484,0.688279,57606.0,57605.0,0.0875387]
[1725233547306,0.341093,57606.0,57605.0,0.0875387]
[1725233548101,0.341093,57606.0,57605.0,0.2611347]
[1725233548102,0.1675,57606.0,57605.0,0.2611347]
[1725233548939,0.0675,57606.0,57605.0,0.2611347]
[1725233550230,0.0675,57606.0,57605.0,0.0875387]
[1725233550454,0.74972273,57606.0,57605.0,0.0875387]
[1725233550865,1.7573323,57606.0,57605.0,0.0875387]
[1725233551742,1.98258073,57606.0,57605.0,0.0875387]
[1725233551965,2.08258073,57606.0,57605.0,0.0875387]
[1725233552479,1.72839473,57606.0,57605.0,0.0875387]
[1725233554652,1.73339473,57606.0,57605.0,0.0875387]
[1725233555129,1.77819556,57606.0,57605.0,0.0875387]
[1725233555386,1.9467472,57606.0,57605.0,0.0875387]
[1725233555632,1.72839473,57606.0,57605.0,0.0875387]
[1725233558554,1.92859473,57606.0,57582.0,0.50540786]
[1725233558754,0.174,57584.0,57582.0,0.50540786]
[1725233558983,0.005,57598.0,57582.0,0.50540786]
[1725233558984,0.173654,57586.0,57582.0,0.50540786]
[1725233559177,0.347297,57588.0,57580.0,0.173669]
[1725233559414,0.17366,57584.0,57578.0,0.521025]
[1725233559615,0.17366,57584.0,57578.0,0.34735]
[1725233559837,0.173662,57583.0,57575.0,0.565669]
[1725233560023,0.50875673,57585.0,57573.0,0.1663]
[1725233560024,0.16144373,57585.0,57573.0,0.1663]
[1725233560234,0.173679,57578.0,57573.0,0.17369]
[1725233560661,0.16144373,57581.0,57571.0,0.2183]
[1725233560662,0.173674,57579.0,57574.0,0.1745878]
[1725233560868,0.173684,57576.0,57574.0,0.0008998]
[1725233561075,0.32204373,57577.0,57574.0,0.0008998]
[1725233561481,0.334281,57577.0,57574.0,0.0008998]
[1725233562152,0.173685,57576.0,57574.0,0.0008998]
[1725233562368,0.521058,57575.0,57574.0,0.0008998]
[1725233562771,0.86843,57575.0,57574.0,0.0008998]
[1725233566543,0.521058,57575.0,57574.0,0.0008998]
[1725233566748,0.173686,57575.0,57574.0,0.0008998]
[1725233566989,0.33512973,57575.0,57574.0,0.0008998]
[1725233568651,0.173686,57575.0,57574.0,0.0008998]
[1725233571525,0.173682,57577.0,57574.0,0.0008998]
[1725233571749,0.173683,57576.0,57574.0,0.0008998]
[1725233572350,0.347356,57578.0,57574.0,0.0008998]
[1725233572799,0.17368,57577.0,57574.0,0.0008998]
[1725233573004,0.21703091,57577.0,57574.0,0.0008998]
[1725233573269,0.173683,57577.0,57574.0,0.0008998]
[1725233573483,0.16144373,57583.0,57576.0,0.2194]
[1725233573710,0.17367,57581.0,57576.0,0.2194]
[1725233573915,0.16144373,57583.0,57576.0,0.2194]
[1725233573916,0.33510673,57583.0,57576.0,0.2194]
[1725233574091,0.173669,57581.0,57576.0,0.393081]
[1725233574355,0.173669,57581.0,57576.0,0.2194]
[1725233574577,0.173666,57582.0,57576.0,0.2194]
[1725233574780,0.173668,57581.0,57576.0,0.393083]
[1725233574993,0.347332,57582.0,57576.0,0.2194]
[1725233575221,0.173672,57580.0,57576.0,0.2194]
[1725233575910,0.41448957,57582.0,57576.0,0.2194]
[1725233575911,0.173674,57579.0,57576.0,0.2194]
[1725233576119,0.98234573,57587.0,57576.0,0.2194]
[1725233576329,0.173666,57582.0,57577.0,0.343778]
[1725233576748,0.347318,57584.0,57578.0,0.173676]
[1725233577190,0.173666,57582.0,57578.0,0.173676]